bitfinex/quotes_SOLUSD_20251124
["timestamp","ask_amount","ask_price","bid_price","bid_amount"]
[1763951753106,0.82247464,133.08,133.06,7.51498745]
[1763951753892,0.14433044,133.07,133.06,7.51498745]
[1763951754703,0.14433044,133.07,133.06,13.55349196]
[1763951755018,0.14433044,133.07,133.06,7.51498745]
[1763951755712,0.14433044,133.07,133.06,13.55349196]
[1763951756301,0.14607391,133.1,133.06,13.55349196]
[1763951756903,0.14607391,133.1,133.08,6.03850451]
[1763951757100,0.14607391,133.1,133.09,6.03850451]
[1763951757320,0.14607391,133.1,133.09,62.1]
[1763951758519,0.80607391,133.1,133.09,62.1]
[1763951759015,0.80607391,133.1,133.07,7.51481245]
[1763951759717,0.80607391,133.1,133.07,13.55331696]
[1763951759913,0.80607391,133.1,133.04,22.17074194]
[1763951760112,6.84457842,133.1,133.02,0.69]
[1763951760318,6.03850451,133.09,133.03,6.03850451]
[1763951760492,0.66,133.09,133.04,6.03850451]
[1763951760688,0.66,133.08,133.04,62.1]
[1763951760894,6.03850451,133.07,133.02,62.1]
[1763951761111,6.03850451,133.06,133.02,62.1]
[1763951761299,6.69850451,133.07,133.02,62.1]
[1763951761529,18.12096,133.09,133.02,62.1]
[1763951761530,6.69850451,133.08,133.02,62.1]
[1763951761816,6.69850451,133.08,133.02,69.61762475]
[1763951762013,0.66,133.07,133.02,69.61762475]
[1763951762223,0.66,133.07,133.04,6.03850451]
[1763951762446,0.66,133.09,133.06,6.03850451]
[1763951762719,0.14607391,133.1,133.07,6.03850451]
[1763951762922,0.14607391,133.1,133.08,6.03850451]
[1763951763105,0.14607391,133.1,133.08,13.55252701]
[1763951763300,0.80607391,133.1,133.08,7.5140225]
[1763951763697,0.80607391,133.1,133.08,13.55252701]
[1763951764306,0.14607391,133.1,133.09,6.03850451]
[1763951764822,0.13873395,133.11,133.09,24.84946451]
[1763951765120,1e-08,133.11,133.1,17.62165251]
[1763951765705,0.13989988,133.14,133.1,17.62165251]
[1763951765706,1e-08,133.14,133.13,68.12096]
[1763951765896,1e-08,133.15,133.14,0.69]
[1763951766424,1e-08,133.15,133.14,6.72850451]
[1763951766841,1e-08,133.16,133.15,50.69]
[1763951767145,0.2,133.22,133.19,7.50807117]
[1763951767347,0.2,133.22,133.19,9.41850451]
[1763951767631,6.89850451,133.22,133.15,6.03850451]
[1763951767826,0.86,133.22,133.17,6.03850451]
[1763951768026,0.66,133.21,133.18,6.03850451]
[1763951768630,0.66,133.21,133.17,9.22968806]
[1763951769118,0.66,133.21,133.18,9.22968806]
[1763951769317,0.66,133.21,133.18,16.73806735]
[1763951769518,0.66,133.21,133.18,9.22968806]
[1763951769717,0.66,133.21,133.18,16.73813097]
[1763951769926,0.66,133.21,133.18,9.22968806]
[1763951770851,0.66,133.21,133.15,0.69]
[1763951771006,0.66,133.21,133.14,25.63177756]
[1763951771340,9.22968806,133.2,133.14,30.73064806]
[1763951771526,0.66,133.19,133.14,27.35064806]
[1763951771722,0.66,133.19,133.14,16.74039006]
[1763951772529,0.66,133.19,133.15,9.22968806]
[1763951773027,0.66,133.19,133.14,7.510702]
[1763951773028,0.66,133.19,133.14,9.22968806]
[1763951773401,0.66,133.19,133.14,16.74039644]
[1763951773840,0.66,133.19,133.14,9.22968806]
[1763951774040,0.14424495,133.15,133.14,9.22968806]
[1763951774341,0.14424495,133.15,133.14,16.74057885]
[1763951774731,0.14424495,133.15,133.13,7.51132956]
[1763951775131,0.14424495,133.15,133.14,9.22968806]
[1763951775535,0.14424495,133.15,133.14,16.74057885]
[1763951776049,0.14424495,133.15,133.14,79.52057885]
[1763951777953,0.14424495,133.15,133.14,78.84057885]
[1763951779334,0.14424495,133.15,133.14,16.74057885]
[1763951780051,0.14424495,133.15,133.14,9.22968806]
[1763951780348,0.14424495,133.15,133.14,16.74057885]
[1763951780936,0.14424495,133.15,133.14,78.84057885]
[1763951781457,0.14424495,133.15,133.14,16.74057885]
[1763951782558,0.14424495,133.15,133.14,9.22968806]
[1763951783561,0.80424495,133.15,133.12,71.32968806]
[1763951783933,0.80424495,133.15,133.13,9.22968806]
[1763951785433,0.80424495,133.15,133.12,71.32968806]
[1763951785859,0.80424495,133.15,133.13,9.22968806]
[1763951786434,0.80424495,133.15,133.12,71.32968806]
[1763951786653,0.80424495,133.15,133.11,9.22968806]
[1763951786983,9.22968806,133.14,133.05,7.51546741]
[1763951787268,9.22968806,133.13,133.05,7.51546741]
[1763951787469,9.22968806,133.13,133.07,9.22968806]
[1763951787774,0.66,133.12,133.06,9.22968806]
[1763951789483,0.66,133.12,133.07,9.22968806]
[1763951790380,0.66,133.12,133.06,9.22968806]
[1763951790579,9.22968806,133.1,133.04,9.22968806]
[1763951790785,0.66,133.12,133.03,7.51663726]
[1763951790990,9.22968806,133.07,133.01,9.22968806]
[1763951791493,0.66,133.06,133.01,9.22968806]
[1763951791697,2.14582215,133.19,133.05,27.35064806]
[1763951791873,0.66,133.1,133.09,9.22968806]
[1763951792066,0.66,133.1,133.05,9.22968806]
[1763951792869,0.66,133.1,133.07,9.22968806]
[1763951793176,0.66,133.13,133.09,9.22968806]
[1763951793380,0.66,133.13,133.12,9.22968806]
[1763951793699,0.80424495,133.15,133.12,9.22968806]
[1763951793866,0.16112896,133.13,133.12,9.22968806]
[1763951794270,0.82112896,133.13,133.11,9.22968806]
[1763951794612,0.82112896,133.13,133.1,9.22968806]
[1763951794766,0.82112896,133.13,133.11,9.22968806]
[1763951795493,0.16112896,133.13,133.12,16.74170729]
[1763951795682,0.16112896,133.13,133.09,0.75137125]
[1763951795893,0.82112896,133.13,133.09,7.51356583]
[1763951796202,0.82112896,133.13,133.1,9.22968806]
[1763951796400,0.82112896,133.13,133.11,9.22968806]
[1763951797395,0.82112896,133.13,133.1,27.35064806]
[1763951799198,0.82112896,133.13,133.1,18.12096]
[1763951799878,0.82112896,133.13,133.09,9.22968806]
[1763951800078,0.82112896,133.13,133.08,27.35064806]
[1763951800396,0.82112896,133.13,133.1,9.22968806]
[1763951800903,0.82112896,133.13,133.09,9.22968806]
[1763951801098,0.82112896,133.13,133.1,9.22968806]
[1763951801304,0.82112896,133.13,133.08,25.63494811]
[1763951801597,0.82112896,133.13,133.09,9.22968806]
[1763951802800,0.82112896,133.13,133.1,9.22968806]
[1763951803199,0.16112896,133.13,133.12,9.22968806]
[1763951803572,0.16112896,133.13,133.12,1.43120192]
[1763951803811,0.16112896,133.13,133.12,9.22968806]
[1763951804112,0.81112896,133.13,133.11,9.22968806]
[1763951804582,0.81112896,133.13,133.1,78.84268762]
[1763951804786,0.81112896,133.13,133.1,9.22968806]
[1763951805200,0.81112896,133.13,133.08,25.63504142]
[1763951805504,0.81112896,133.13,133.09,16.74338119]
[1763951805919,0.81112896,133.13,133.07,7.51435484]
[1763951806081,0.81112896,133.13,133.08,9.22968806]
[1763951806281,10.04081702,133.13,133.06,62.1]
[1763951806486,10.04081702,133.13,133.07,9.22968806]
[1763951806709,0.65,133.12,133.07,9.22968806]
[1763951807600,0.16112896,133.13,133.11,9.22968806]
[1763951807793,0.16112896,133.13,133.12,9.22968806]
[1763951809409,0.16112896,133.13,133.12,10.66088998]
[1763951809709,0.16112896,133.13,133.12,18.17290921]
[1763951811314,0.16112896,133.13,133.11,7.51239548]
[1763951811315,0.81112896,133.13,133.11,7.51239548]
[1763951811513,0.81112896,133.13,133.09,34.86380949]
[1763951812633,0.81112896,133.13,133.1,9.22968806]
[1763951813608,0.81112896,133.13,133.11,9.22968806]
[1763951813805,0.65,133.13,133.11,9.22968806]
[1763951814030,0.15118214,133.12,133.1,16.74278932]
[1763951814231,0.15118214,133.12,133.1,9.22968806]
[1763951814916,0.80118214,133.12,133.1,9.22968806]
[1763951815819,0.15118214,133.12,133.1,16.74278347]
[1763951816022,0.80118214,133.12,133.08,62.1]
[1763951816237,0.80118214,133.12,133.09,9.22968806]
[1763951816742,0.80118214,133.12,133.08,71.32968806]
[1763951816908,0.15118214,133.12,133.11,9.22968806]
[1763951818014,0.15118214,133.12,133.11,78.84227163]
[1763951818227,0.15118214,133.12,133.11,79.52227163]
[1763951818618,0.15118214,133.12,133.11,35.54323163]
[1763951821547,0.15118214,133.12,133.11,34.86323163]
[1763951821750,0.15118214,133.12,133.11,35.54323163]
[1763951822033,0.13863038,133.15,133.14,25.63185079]
[1763951822331,1e-08,133.16,133.15,9.22968806]
[1763951822631,1e-08,133.17,133.15,9.90968806]
[1763951822826,1e-08,133.18,133.16,59.90968806]
[1763951823023,1e-08,133.18,133.17,12.60968806]
[1763951823229,1e-08,133.18,133.17,13.28968806]
[1763951824318,1e-08,133.18,133.17,20.79888682]
[1763951824939,1e-08,133.2,133.18,68.80096]
[1763951825127,1e-08,133.2,133.19,12.60968806]
[1763951825332,1e-08,133.22,133.21,68.12096]
[1763951825643,0.2,133.25,133.21,90.64033612]
[1763951825827,0.2,133.25,133.22,21.50096]
[1763951826026,0.85,133.25,133.24,9.22968806]
[1763951826223,0.85,133.25,133.23,9.22968806]
[1763951826421,0.2,133.25,133.24,16.73494173]
[1763951826932,0.2,133.25,133.24,20.79494173]
[1763951827240,0.2,133.28,133.24,89.55807592]
[1763951827548,0.2,133.28,133.27,9.22968806]
[1763951827941,0.85,133.28,133.2,0.68]
[1763951828144,0.85,133.28,133.24,9.22968806]
[1763951828348,0.65,133.27,133.2,7.5075075]
[1763951828524,0.65,133.27,133.22,9.22968806]
[1763951828722,9.87968806,133.27,133.21,9.22968806]
[1763951829025,0.65,133.27,133.24,9.22968806]
[1763951829235,0.65,133.27,133.25,9.22968806]
[1763951830455,0.65,133.27,133.24,9.22968806]
[1763951830642,0.65,133.27,133.23,6.01967567]
[1763951830939,0.65,133.27,133.22,6.01967567]
[1763951831344,0.65,133.27,133.21,7.50683345]
[1763951831548,6.01967567,133.26,133.17,18.77264337]
[1763951831855,0.65,133.27,133.17,18.77264337]
[1763951831856,6.01967567,133.25,133.18,7.50854715]
[1763951832060,6.01967567,133.25,133.2,6.01967567]
[1763951832261,0.65,133.24,133.2,6.01967567]
[1763951832428,0.65,133.24,133.21,6.01967567]
[1763951833430,0.65,133.24,133.19,6.01967567]
[1763951833636,0.65,133.24,133.21,6.01967567]
[1763951833850,0.65,133.24,133.22,6.01967567]
[1763951834056,0.14933869,133.23,133.22,6.01967567]
[1763951834458,0.79933869,133.23,133.21,6.01967567]
[1763951834867,0.79933869,133.23,133.2,6.01967567]
[1763951835052,0.79933869,133.23,133.21,6.01967567]
[1763951836164,0.14933869,133.23,133.22,6.01967567]
[1763951836547,0.14933869,133.23,133.22,6.67967567]
[1763951836865,0.14267121,133.24,133.22,10.81031371]
[1763951837071,0.13892894,133.26,133.22,10.81031371]
[1763951837072,0.13892894,133.26,133.25,18.12096]
[1763951837266,0.16395737,133.27,133.25,28.18063567]
[1763951837457,0.16395737,133.27,133.26,25.55104839]
[1763951837764,0.2,133.3,133.26,25.55104839]
[1763951838072,0.2,133.3,133.27,82.30419986]
[1763951838444,1e-08,133.28,133.27,82.30419986]
[1763951838772,1e-08,133.29,133.28,0.66]
[1763951838949,1e-08,133.3,133.29,50.0]
[1763951839149,1e-08,133.3,133.29,56.01967567]
[1763951839349,1e-08,133.3,133.29,60.05967567]
[1763951839971,1e-08,133.3,133.29,6.01967567]
[1763951840185,1e-08,133.3,133.29,24.14063567]
[1763951840553,1e-08,133.3,133.29,31.64307396]
[1763951841265,0.69000001,133.3,133.28,6.01967567]
[1763951841455,0.69000001,133.3,133.26,6.01967567]
[1763951842350,0.69000001,133.3,133.26,68.11967567]
[1763951842742,1e-08,133.3,133.26,69.60411491]
[1763951842949,1e-08,133.3,133.29,6.01967567]
[1763951843158,0.69000001,133.3,133.29,6.01967567]
[1763951843359,0.69000001,133.3,133.27,6.01967567]
[1763951843557,0.69000001,133.3,133.28,6.01967567]
[1763951844348,1e-08,133.3,133.29,6.01967567]
[1763951845275,1e-08,133.3,133.29,24.14063567]
[1763951846159,1e-08,133.3,133.29,6.01967567]
[1763951846379,1e-08,133.3,133.29,13.52211396]
[1763951846544,1e-08,133.3,133.29,31.64307396]
[1763951847669,1e-08,133.3,133.29,68.31235778]
[1763951847873,1e-08,133.3,133.29,13.52211396]
[1763951848081,1e-08,133.3,133.29,35.02307396]
[1763951848245,1e-08,133.3,133.29,31.64307396]
[1763951849236,1e-08,133.3,133.29,82.30307396]
[1763951849534,1e-08,133.3,133.29,81.64307396]
[1763951849832,1e-08,133.3,133.29,82.30307396]
[1763951850514,1e-08,133.3,133.29,64.18211396]
[1763951850699,0.2,133.35,133.32,18.12096]
[1763951851027,0.2,133.35,133.34,6.01967567]
[1763951851235,0.2,133.35,133.34,24.14063567]
[1763951852033,0.2,133.35,133.34,6.01967567]
[1763951852402,0.2,133.35,133.34,13.51930068]
[1763951852814,0.2,133.35,133.34,195.74026068]
[1763951853418,0.2,133.39,133.37,68.12096]
[1763951853722,0.2,133.39,133.38,9.39967567]
[1763951854023,0.36060776,133.39,133.38,27.52063567]
[1763951854395,0.36060776,133.39,133.38,24.14063567]
[1763951854999,0.36060776,133.39,133.38,31.63801158]
[1763951855197,0.36060776,133.39,133.38,32.22801158]
[1763951855418,0.36060776,133.39,133.38,18.12096]
[1763951855601,1.05060776,133.39,133.37,13.51737864]
[1763951856116,0.36060776,133.39,133.37,25.61866297]
[1763951856323,0.36060776,133.39,133.38,6.01967567]
[1763951856526,0.36060776,133.39,133.38,13.51705158]
[1763951857231,1.05060776,133.39,133.37,31.63854301]
[1763951857623,0.36060776,133.39,133.38,6.01967567]
[1763951857810,0.69,133.38,133.33,18.75016479]
[1763951858130,0.69,133.38,133.33,6.01967567]
[1763951858425,0.69,133.38,133.35,6.01967567]
[1763951858722,0.36060776,133.39,133.36,6.01967567]
[1763951859093,1.05060776,133.39,133.34,26.99865005]
[1763951859502,1.05060776,133.39,133.36,6.01967567]
[1763951859695,0.36060776,133.39,133.37,6.01967567]
[1763951859922,0.69,133.38,133.36,6.01967567]
[1763951860231,0.69,133.38,133.37,6.01967567]
[1763951860730,0.36060776,133.39,133.37,13.51761373]
[1763951861032,1.05060776,133.39,133.38,6.01967567]
[1763951861200,0.36060776,133.39,133.38,6.01967567]
[1763951861726,1.05060776,133.39,133.36,18.12096]
[1763951861925,1.05060776,133.39,133.34,18.12096]
[1763951862102,0.69,133.38,133.33,6.01967567]
[1763951862422,0.69,133.38,133.33,31.64067408]
[1763951862626,0.69,133.38,133.34,6.01967567]
[1763951862936,0.69,133.38,133.34,13.5192345]
[1763951863925,0.69,133.38,133.34,6.01967567]
[1763951864131,0.69,133.38,133.34,13.51926303]
[1763951864938,0.69,133.38,133.34,13.51926141]
[1763951865337,0.69,133.38,133.35,6.01967567]
[1763951865639,0.69,133.38,133.34,13.51926141]
[1763951866229,0.69,133.38,133.35,6.01967567]
[1763951866542,0.36060776,133.39,133.36,6.01967567]
[1763951866749,1.06060776,133.39,133.37,13.51750946]
[1763951867151,1.06060776,133.39,133.37,7.49783379]
[1763951867340,0.7,133.38,133.37,7.49783379]
[1763951868423,0.36060776,133.39,133.37,7.49783379]
[1763951868621,0.36060776,133.39,133.37,13.51750946]
[1763951868832,0.36060776,133.39,133.38,13.51705158]
[1763951869032,1.06060776,133.39,133.36,31.63908531]
[1763951869548,0.7,133.38,133.36,31.63908531]
[1763951870728,0.7,133.38,133.34,7.49921689]
[1763951870939,0.7,133.38,133.35,18.12096]
[1763951871751,0.7,133.38,133.35,24.14063567]
[1763951871947,0.36060776,133.39,133.36,6.01967567]
[1763951872131,1.06060776,133.39,133.36,6.01967567]
[1763951872452,0.7,133.38,133.34,7.49921689]
[1763951872756,0.7,133.38,133.33,31.64065316]
[1763951873123,0.7,133.38,133.34,6.01967567]
[1763951874042,0.16300319,133.35,133.34,6.01967567]
[1763951874240,0.16300319,133.35,133.31,0.59]
[1763951874241,0.16300319,133.35,133.31,0.75013127]
[1763951874443,0.7,133.34,133.31,31.64193607]
[1763951874655,0.86300319,133.35,133.32,6.01967567]
[1763951875172,0.86300319,133.35,133.33,13.51986317]
[1763951875456,0.16300319,133.35,133.33,13.51986317]
[1763951875960,0.86300319,133.35,133.33,13.51986317]
[1763951876730,0.86300319,133.35,133.33,7.5001875]
[1763951878157,0.86300319,133.35,133.31,25.62182665]
[1763951878355,0.86300319,133.35,133.31,31.64150232]
[1763951879345,0.86300319,133.35,133.32,6.01967567]
[1763951879966,0.86300319,133.35,133.33,6.01967567]
[1763951880270,0.86300319,133.35,133.33,13.51979966]
[1763951880441,0.16300319,133.35,133.33,7.50012399]
[1763951880762,0.16300319,133.35,133.34,24.89059817]
[1763951880931,0.16300319,133.35,133.32,62.1]
[1763951881139,0.16300319,133.35,133.31,6.01967567]
[1763951881338,0.16300319,133.35,133.29,13.52193027]
[1763951881539,0.7,133.34,133.29,32.278026]
[1763951881860,0.7,133.34,133.29,24.14063567]
[1763951882162,0.7,133.34,133.3,6.01967567]
[1763951882363,0.16300319,133.35,133.31,14.27111966]
[1763951882566,0.16300319,133.35,133.32,6.01967567]
[1763951882739,0.86300319,133.35,133.32,6.01967567]
[1763951882939,0.16300319,133.35,133.33,6.01967567]
[1763951883679,0.86300319,133.35,133.34,18.12096]
[1763951883853,0.86300319,133.35,133.31,13.52098839]
[1763951884175,0.86300319,133.35,133.31,25.62227272]
[1763951884668,0.86300319,133.35,133.29,69.60228715]
[1763951884669,6.88267886,133.35,133.29,69.60228715]
[1763951884972,6.88267886,133.35,133.29,93.74292282]
[1763951885173,0.7,133.34,133.29,93.74292282]
[1763951885359,0.7,133.34,133.29,31.64292282]
[1763951886068,0.7,133.34,133.3,6.01967567]
[1763951886381,0.16300319,133.35,133.34,7.49962501]
[1763951886589,0.16300319,133.35,133.34,14.26926318]
[1763951886812,0.86300319,133.35,133.34,18.8709225]
[1763951887104,0.86300319,133.35,133.31,13.52097895]
[1763951887267,0.86300319,133.35,133.33,18.12096]
[1763951887605,0.86300319,133.35,133.3,25.62277283]
[1763951887764,6.88267886,133.35,133.3,7.50181283]
[1763951888189,0.7,133.34,133.3,7.50181283]
[1763951888373,0.7,133.34,133.29,31.64289077]
[1763951888794,6.71967567,133.34,133.27,6.01967567]
[1763951888990,6.71967567,133.34,133.28,6.01967567]
[1763951889177,0.7,133.33,133.28,6.01967567]
[1763951889779,0.7,133.33,133.27,18.12096]
[1763951889997,6.01967567,133.32,133.27,18.12096]
[1763951890498,0.7,133.31,133.26,13.52362879]
[1763951890791,0.7,133.31,133.26,25.62491312]
[1763951890992,0.7,133.31,133.26,34.84304105]
[1763951891772,0.7,133.31,133.26,27.33908793]
[1763951891974,0.7,133.31,133.27,9.21812793]
[1763951892172,9.38113112,133.35,133.28,9.21812793]
[1763951892379,0.7,133.33,133.29,27.33908793]
[1763951892571,0.7,133.33,133.29,34.84134135]
[1763951892776,0.7,133.33,133.29,18.12096]
[1763951893404,0.7,133.33,133.29,34.84143121]
[1763951894084,0.16314696,133.3,133.29,34.84143121]
[1763951894279,0.16314696,133.3,133.29,18.12096]
[1763951894492,0.86314696,133.3,133.29,18.12096]
[1763951895091,0.86314696,133.3,133.28,18.12096]
[1763951896085,0.86314696,133.3,133.29,18.12096]
[1763951896086,0.16314696,133.3,133.29,18.12096]
[1763951896500,0.16314696,133.3,133.29,27.33908793]
[1763951897099,0.16314696,133.3,133.29,34.84152622]
[1763951897479,0.16314696,133.3,133.29,18.12096]
[1763951897679,0.83314696,133.3,133.29,18.12096]
[1763951898093,0.83314696,133.3,133.27,18.12096]
[1763951898692,0.83314696,133.3,133.27,27.33908793]
[1763951899089,0.83314696,133.3,133.27,18.12096]
[1763951899414,0.83314696,133.3,133.26,27.33908793]
[1763951899604,0.83314696,133.3,133.24,16.72322178]
[1763951899605,10.05127489,133.3,133.24,16.72322178]
[1763951899982,0.67,133.29,133.25,18.12096]
[1763951900401,9.21812793,133.27,133.21,0.1]
[1763951900601,9.21812793,133.26,133.21,0.1]
[1763951900784,22.17096,133.29,133.21,0.1]
[1763951900785,9.21812793,133.25,133.21,0.1]
[1763951901097,9.21812793,133.24,133.21,0.1]
[1763951901615,0.67,133.23,133.21,0.1]
[1763951902809,9.88812793,133.23,133.21,0.1]
[1763951903180,0.67,133.22,133.21,0.1]
[1763951903585,9.88812793,133.22,133.21,0.1]
[1763951904694,0.67,133.22,133.21,0.1]
[1763951905291,0.67,133.24,133.21,9.31812793]
[1763951905483,4.05,133.27,133.23,9.21812793]
[1763951905893,4.05,133.27,133.21,0.1]
[1763951906096,3.38,133.27,133.21,0.69]
[1763951906388,4.05,133.27,133.23,16.72348701]
[1763951906696,4.05,133.27,133.24,9.21812793]
[1763951907516,0.67,133.26,133.23,16.72348701]
[1763951907686,4.05,133.27,133.23,16.72348701]
[1763951907885,4.05,133.27,133.21,19.45665525]
[1763951907886,0.67,133.26,133.21,0.1]
[1763951908205,9.88812793,133.26,133.21,0.1]
[1763951908408,0.67,133.26,133.21,9.31812793]
[1763951908612,0.67,133.25,133.22,9.21812793]
[1763951908915,0.67,133.25,133.21,16.8249311]
[1763951909090,3.38,133.27,133.23,9.21812793]
[1763951909287,0.67,133.26,133.22,9.21812793]
[1763951909688,3.38,133.27,133.24,9.21812793]
[1763951910095,0.67,133.26,133.22,9.21812793]
[1763951910291,0.67,133.26,133.21,0.1]
[1763951910606,9.88812793,133.26,133.21,0.1]
[1763951911098,0.67,133.25,133.21,62.2]
[1763951911716,0.67,133.25,133.21,0.1]
[1763951911717,9.88812793,133.25,133.21,0.1]
[1763951912097,0.67,133.24,133.21,0.1]
[1763951912300,9.21812793,133.23,133.21,0.1]
[1763951912500,3.38,133.22,133.21,0.1]
[1763951912696,0.67,133.23,133.21,0.1]
[1763951913108,3.38,133.24,133.21,0.1]
[1763951913300,0.67,133.26,133.22,9.21812793]
[1763951913612,4.05,133.28,133.23,9.21812793]
[1763951914003,0.15281516,133.24,133.23,9.21812793]
[1763951914416,0.15281516,133.24,133.23,16.72394493]
[1763951914589,0.15281516,133.24,133.23,17.47452663]
[1763951915110,0.15281516,133.24,133.23,16.72394493]
[1763951915500,0.15281516,133.24,133.22,16.72432316]
[1763951916296,0.15281516,133.24,133.23,9.21812793]
[1763951916599,0.15281516,133.24,133.23,17.47452663]
[1763951917322,0.15281516,133.24,133.23,16.72394493]
[1763951920921,0.15281516,133.24,133.23,78.82394493]
[1763951922503,0.15281516,133.24,133.23,69.605817]
[1763951922725,0.15281516,133.24,133.23,78.82394493]
[1763951923108,0.15281516,133.24,133.23,79.41394493]
[1763951923435,0.15281516,133.24,133.23,200.28548663]
[1763951923649,0.15281516,133.24,133.23,198.94490493]
[1763951923801,0.15281516,133.24,133.23,199.53490493]
[1763951924020,0.15281516,133.24,133.23,198.94490493]
[1763951924224,0.15281516,133.24,133.23,199.53490493]
[1763951925061,0.16280123,133.25,133.24,68.12096]
[1763951925226,0.14631962,133.26,133.25,9.21812793]
[1763951925438,0.14631962,133.26,133.25,0.59]
[1763951925649,0.14631962,133.26,133.25,9.80812793]
[1763951926165,0.15828313,133.27,133.25,71.90812793]
[1763951926476,0.15828313,133.27,133.26,28.67950065]
[1763951926753,1e-08,133.27,133.26,78.67950065]
[1763951927131,1e-08,133.27,133.26,86.18362791]
[1763951927643,1e-08,133.27,133.26,35.59362791]
[1763951927846,1e-08,133.27,133.26,34.84321519]
[1763951928730,1e-08,133.27,133.26,35.59362791]
[1763951928927,1e-08,133.27,133.26,18.06266791]
[1763951929528,1e-08,133.27,133.26,21.44266791]
[1763951930727,1e-08,133.27,133.26,83.54266791]
[1763951930937,1e-08,133.27,133.26,203.66362791]
[1763951931137,1e-08,133.27,133.26,198.94321519]
[1763951931348,1e-08,133.27,133.26,202.32321519]
[1763951931745,1e-08,133.27,133.26,184.20225519]
[1763951932759,1e-08,133.27,133.26,198.94321519]
[1763951933842,0.66,133.3,133.26,217.70353336]
[1763951934025,0.13798881,133.29,133.28,9.21812793]
[1763951934559,0.79798881,133.29,133.28,9.21812793]
[1763951934935,0.13798881,133.29,133.28,9.21812793]
[1763951935132,0.13798881,133.29,133.28,174.06842805]
[1763951935460,0.13798881,133.29,133.28,171.6030012]
[1763951935661,0.13798881,133.29,133.28,180.82112913]
[1763951939968,0.13798881,133.29,133.28,171.6030012]
[1763951940139,0.13798881,133.29,133.28,180.82112913]
[1763951941048,0.1647101,133.3,133.29,50.0]
[1763951941254,1e-08,133.3,133.29,140.77933175]
[1763951941765,1e-08,133.3,133.29,250.28177004]
[1763951941939,1e-08,133.3,133.29,249.53152622]
[1763951942867,0.16420487,133.33,133.31,68.12096]
[1763951943045,0.16420487,133.33,133.32,13.34820293]
[1763951943367,0.16420487,133.33,133.32,13.93820293]
[1763951943753,0.16420487,133.33,133.32,20.848953]
[1763951944569,0.16420487,133.33,133.32,21.438953]
[1763951944773,1e-08,133.33,133.32,21.438953]
[1763951945565,1e-08,133.35,133.33,50.59]
[1763951945868,0.2,133.39,133.37,7.49793806]
[1763951946076,0.2,133.39,133.38,27.33908793]
[1763951946445,0.2,133.39,133.38,27.92908793]
[1763951947273,0.2,133.39,133.38,85.42646384]
[1763951947851,0.2,133.39,133.38,35.42646384]
[1763951948267,0.2,133.39,133.38,85.42646384]
[1763951948468,0.2,133.39,133.38,35.42646384]
[1763951948680,0.2,133.39,133.38,36.17620143]
[1763951949063,1e-08,133.39,133.38,68.05524143]
[1763951950949,0.66000001,133.39,133.37,9.21812793]
[1763951951160,0.66000001,133.39,133.36,62.1]
[1763951951375,0.66000001,133.39,133.35,69.59906261]
[1763951951685,0.66000001,133.39,133.35,7.49906261]
[1763951952375,0.66000001,133.39,133.35,16.71719054]
[1763951952562,1e-08,133.39,133.38,6.00622105]
[1763951953347,1e-08,133.39,133.38,13.50359696]
[1763951953783,0.66000001,133.39,133.38,13.50359696]
[1763951953958,0.8129867,133.39,133.38,7.49737591]
[1763951954162,0.8129867,133.39,133.38,13.50359696]
[1763951955968,0.8129867,133.39,133.34,62.1]
[1763951956170,0.8129867,133.39,133.35,6.00622105]
[1763951957304,0.1529867,133.39,133.36,6.00622105]
[1763951957470,0.8529867,133.39,133.38,13.50359696]
[1763951957657,0.8529867,133.39,133.38,75.60359696]
[1763951958153,0.8529867,133.39,133.38,62.1]
[1763951959488,0.8529867,133.39,133.38,69.59737591]
[1763951962085,0.1529867,133.39,133.38,69.59737591]
[1763951962272,0.1529867,133.39,133.38,70.3471135]
[1763951962480,0.1529867,133.39,133.38,76.35333455]
[1763951964683,0.1529867,133.39,133.38,75.60359696]
[1763951965706,0.8529867,133.39,133.37,62.1]
[1763951965887,6.00622105,133.38,133.32,69.60053138]
[1763951966187,6.00622105,133.37,133.3,65.46]
[1763951966385,6.00622105,133.37,133.31,6.00622105]
[1763951966584,0.7,133.36,133.31,6.00622105]
[1763951966891,0.7,133.36,133.31,7.50130129]
[1763951967073,6.70622105,133.36,133.31,7.50130129]